[Event "Turkish Women-ch Arzum 2022"]
[Site "Ayvalik"]
[Date "2022.03.06"]
[Round "3.24"]
[White "Akar, Nilay"]
[Black "Dal, Nurseda"]
[Result "1-0"]
[ECO "C90"]
[WhiteElo "1516"]
[BlackElo "1116"]
[Annotator "NA"]
[PlyCount "53"]
[EventDate "2022.03.04"]
[EventType "swiss"]
[EventCountry "TUR"]
[SourceTitle "playchess.com"]
[Source "ChessBase"]
[SourceQuality "1"]
[TimeControl "5400+30"]

1. e4 {[%emt 0:01:00]} e5 {[%emt 0:01:00]} 2. Nf3 {[%emt 0:00:30]} Nc6 {[%emt 0:00:30]} 3. Bb5 {[%emt 0:00:30]} a6 {[%emt 0:00:30]} 4. Ba4 {[%emt 0:00:30]} Nf6 {[%emt 0:00:30]} 5. d3 {[%emt 0:00:30]} b5 {[%emt 0:00:00]} 6. Bb3 {[%emt 0:01:30]} Be7 {[%emt 0:01:00]} 7. O-O {[%emt 0:00:00]} d6 {[%emt 0:00:30]} 8. c3 {[%emt 0:00:00]} O-O {[%emt 0:01:30]} 9. Re1 {[%emt 0:00:30]} Na5 {[%emt 0:01:30]} 10. Bc2 {[%emt 0:00:00]} c5 {[%emt 0:00:30]} 11. Nbd2 {[%emt 0:00:00]} Bb7 {[%emt 0:01:30]} 12. Nf1 {[%emt 0:00:30]} h6 {[%emt 0:01:30]} 13. Ng3 {[%emt 0:00:30]} Qd7 {[%emt 0:01:30]} 14. Nf5 {[%emt 0:01:30]} Rfe8 {[%emt 0:05:30]} 15. N3h4 {[%emt 0:05:30]} Kh7 {[%emt 0:06:30]} 16. Re3 {[%emt 0:03:30]} g6 {[%emt 0:11:30]} 17. Nxe7 {[%emt 0:04:30]} Qxe7 {[%emt 0:00:30]} 18. Rh3 {[%emt 0:04:30]} Bc8 {[%emt 0:01:30]} 19. Nf5 {[%emt 0:02:30]} gxf5 {[%emt 0:03:30]} 20. Rxh6+ {[%emt 0:03:30]} Kg7 {[%emt 0:01:30]} 21. Bg5 {[%emt 0:00:30]} Qd7 {[%emt 0:16:30]} 22. Rxf6 {[%emt 0:01:30]} Rh8 {[%emt 0:02:30]} 23. h4 {[%emt 0:02:30]} f4 {[%emt 0:00:30]} 24. d4 {[%emt 0:02:30]} Nc6 {[%emt 0:11:30]} 25. dxe5 {[%emt 0:01:30]} dxe5 {[%emt 0:01:30]} 26. Rd6 {[%emt 0:01:30]} Qc7 {[%emt 0:01:30]} 27. Bf6+ {[%emt 0:00:30]} 1-0

[Event "Turkish Women-ch Arzum 2022"]
[Site "Ayvalik"]
[Date "2022.03.06"]
[Round "3.25"]
[White "Topal, Berfin"]
[Black "Keskinler, Ela"]
[Result "0-1"]
[ECO "D13"]
[WhiteElo "1322"]
[BlackElo "1400"]
[Annotator "NA"]
[PlyCount "108"]
[EventDate "2022.03.04"]
[EventType "swiss"]
[EventCountry "TUR"]
[SourceTitle "playchess.com"]
[Source "ChessBase"]
[SourceQuality "1"]
[TimeControl "5400+30"]

1. d4 {[%emt 0:01:00]} d5 {[%emt 0:01:00]} 2. Nf3 {[%emt 0:00:30]} Nf6 {[%emt 0:00:30]} 3. e3 {[%emt 0:00:30]} c5 {[%emt 0:00:30]} 4. c3 {[%emt 0:00:30]} cxd4 {[%emt 0:00:30]} 5. cxd4 {[%emt 0:00:30]} Nc6 {[%emt 0:00:30]} 6. Bd3 {[%emt 0:00:00]} g6 {[%emt 0:00:00]} 7. O-O {[%emt 0:00:00]} Bg7 {[%emt 0:00:00]} 8. a3 {[%emt 0:01:30]} O-O {[%emt 0:00:30]} 9. Nbd2 {[%emt 0:00:30]} Re8 {[%emt 0:01:30]} 10. b3 {[%emt 0:03:30]} Nd7 {[%emt 0:02:30]} 11. Bb2 {[%emt 0:02:30]} e5 {[%emt 0:02:30]} 12. dxe5 {[%emt 0:00:30]} Ndxe5 {[%emt 0:00:30]} 13. Nxe5 {[%emt 0:01:30]} Nxe5 {[%emt 0:00:00]} 14. Be2 {[%emt 0:01:30]} Be6 {[%emt 0:04:00]} 15. Bd4 {[%emt 0:01:30]} Qd6 {[%emt 0:02:30]} 16. Nf3 {[%emt 0:00:30]} f6 {[%emt 0:03:30]} 17. h3 {[%emt 0:02:30]} Rad8 {[%emt 0:00:30]} 18. Qc2 {[%emt 0:08:30]} b6 {[%emt 0:01:30]} 19. Rfd1 {[%emt 0:00:30]} Rc8 {[%emt 0:02:30]} 20. Qb2 {[%emt 0:00:30]} Rc7 {[%emt 0:05:30]} 21. Rac1 {[%emt 0:04:30]} Rec8 {[%emt 0:01:30]} 22. Rxc7 {[%emt 0:00:00]} Rxc7 {[%emt 0:01:30]} 23. e4 {[%emt 0:04:00]} Rd7 {[%emt 0:01:30]} 24. Bc3 {[%emt 0:01:30]} Qc7 {[%emt 0:00:30]} 25. Nd4 {[%emt 0:03:30]} Bf7 {[%emt 0:02:30]} 26. Nb5 {[%emt 0:00:30]} Qb7 {[%emt 0:00:30]} 27. f4 {[%emt 0:02:30]} Nc6 {[%emt 0:08:30]} 28. exd5 {[%emt 0:03:30]} Bxd5 {[%emt 0:04:30]} 29. Bxf6 {[%emt 0:05:30]} Bxf6 {[%emt 0:06:30]} 30. Qxf6 {[%emt 0:00:00]} Bxb3 {[%emt 0:00:30]} 31. Rc1 {[%emt 0:01:00]} Bd5 {[%emt 0:08:30]} 32. Bg4 {[%emt 0:00:30]} Rf7 {[%emt 0:02:30]} 33. Be6 {[%emt 0:08:30]} Bxe6 {[%emt 0:03:30]} 34. Qxe6 {[%emt 0:00:00]} Nd8 {[%emt 0:00:30]} 35. Rc8 {[%emt 0:01:00]} Qd7 {[%emt 0:00:30]} 36. Qxd7 {[%emt 0:10:30]} Rxd7 {[%emt 0:00:30]} 37. Nxa7 {[%emt 0:00:30]} Rxa7 {[%emt 0:00:30]} 38. Rxd8+ {[%emt 0:00:30]} Kg7 {[%emt 0:00:30]} 39. Rd3 {[%emt 0:00:30]} b5 {[%emt 0:01:30]} 40. Kf2 {[%emt 0:00:30]} Kf6 {[%emt 0:00:30]} 41. g3 {[%emt 0:00:30]} Ke6 {[%emt 0:01:30]} 42. Ke3 {[%emt 0:00:30]} Ra4 {[%emt 0:01:30]} 43. Kd2 {[%emt 0:00:30]} Kf5 {[%emt 0:02:30]} 44. Rb3 {[%emt 0:01:30]} Ke4 {[%emt 0:01:30]} 45. Kc2 {[%emt 0:03:30]} Kd4 {[%emt 0:03:30]} 46. Kb2 {[%emt 0:02:30]} Kc5 {[%emt 0:04:30]} 47. Rc3+ {[%emt 0:01:30]} Kd4 {[%emt 0:01:53]} 48. Rb3 {[%emt 0:04:30]} Kc5 {[%emt 0:01:18]} 49. Kc3 {[%emt 0:01:30]} Rxa3 {[%emt 0:01:00]} 50. Rxa3 {[%emt 0:02:59]} b4+ {[%emt 0:00:30]} 51. Kb3 {[%emt 0:00:30]} bxa3 {[%emt 0:00:00]} 52. g4 {[%emt 0:00:05]} Kd4 {[%emt 0:00:00]} 53. h4 {[%emt 0:01:48]} Ke4 {[%emt 0:00:04]} 54. f5 {[%emt 0:00:00]} gxf5 {[%emt 0:00:15]} 0-1

[Event "Turkish Women-ch Arzum 2022"]
[Site "Ayvalik"]
[Date "2022.03.06"]
[Round "3.26"]
[White "Zengin, Ovgu"]
[Black "Sahin, Cagla Yudum"]
[Result "1-0"]
[ECO "C54"]
[WhiteElo "1475"]
[BlackElo "1162"]
[Annotator "NA"]
[PlyCount "75"]
[EventDate "2022.03.04"]
[EventType "swiss"]
[EventCountry "TUR"]
[SourceTitle "playchess.com"]
[Source "ChessBase"]
[SourceQuality "1"]
[TimeControl "5400+30"]

1. e4 {[%emt 0:01:00]} e5 {[%emt 0:01:00]} 2. Nf3 {[%emt 0:00:30]} Nc6 {[%emt 0:00:30]} 3. Bc4 {[%emt 0:00:30]} Bc5 {[%emt 0:00:30]} 4. c3 {[%emt 0:00:30]} Nf6 {[%emt 0:00:30]} 5. d3 {[%emt 0:00:30]} d6 {[%emt 0:00:00]} 6. O-O {[%emt 0:00:30]} Bg4 {[%emt 0:02:00]} 7. Nbd2 {[%emt 0:00:30]} O-O {[%emt 0:02:30]} 8. h3 {[%emt 0:04:30]} Be6 {[%emt 0:01:30]} 9. Bxe6 {[%emt 0:01:30]} fxe6 {[%emt 0:00:30]} 10. b4 {[%emt 0:00:00]} Bb6 {[%emt 0:00:30]} 11. Nc4 {[%emt 0:00:00]} Nd7 {[%emt 0:04:30]} 12. a4 {[%emt 0:03:30]} d5 {[%emt 0:08:30]} 13. exd5 {[%emt 0:04:30]} exd5 {[%emt 0:00:30]} 14. Ne3 {[%emt 0:02:30]} e4 {[%emt 0:12:30]} 15. dxe4 {[%emt 0:02:30]} dxe4 {[%emt 0:01:30]} 16. Qd5+ {[%emt 0:02:30]} Kh8 {[%emt 0:01:30]} 17. Qxe4 {[%emt 0:00:30]} Qf6 {[%emt 0:04:30]} 18. Nd5 {[%emt 0:03:30]} Qf7 {[%emt 0:02:30]} 19. Nxb6 {[%emt 0:11:30]} axb6 {[%emt 0:00:30]} 20. b5 {[%emt 0:06:30]} Rae8 {[%emt 0:04:30]} 21. Qc2 {[%emt 0:02:30]} Nce5 {[%emt 0:01:30]} 22. Nxe5 {[%emt 0:03:30]} Nxe5 {[%emt 0:00:30]} 23. Ba3 {[%emt 0:00:30]} Rg8 {[%emt 0:00:30]} 24. Rad1 {[%emt 0:12:30]} Re6 {[%emt 0:01:30]} 25. Bc1 {[%emt 0:09:30]} Rg6 {[%emt 0:01:30]} 26. Kh1 {[%emt 0:01:30]} Qf6 {[%emt 0:16:30]} 27. Qe4 {[%emt 0:02:30]} c6 {[%emt 0:03:30]} 28. Bf4 {[%emt 0:02:30]} Nf7 {[%emt 0:02:30]} 29. c4 {[%emt 0:02:30]} Ng5 {[%emt 0:01:30]} 30. Qe3 {[%emt 0:01:52]} Qf5 {[%emt 0:02:30]} 31. Bxg5 {[%emt 0:01:29]} Qxg5 {[%emt 0:00:30]} 32. Qxg5 {[%emt 0:00:35]} Rxg5 {[%emt 0:00:00]} 33. Rd7 {[%emt 0:00:27]} cxb5 {[%emt 0:04:45]} 34. cxb5 {[%emt 0:00:44]} g6 {[%emt 0:00:44]} 35. Rxb7 {[%emt 0:00:45]} Ra8 {[%emt 0:00:07]} 36. Rd1 {[%emt 0:00:40]} Rc5 {[%emt 0:01:07]} 37. Rdd7 {[%emt 0:00:42]} Rh5 {[%emt 0:00:24]} 38. Rxb6 {[%emt 0:00:19]} 1-0

[Event "Turkish Women-ch Arzum 2022"]
[Site "Ayvalik"]
[Date "2022.03.06"]
[Round "3.27"]
[White "Engin, Cagla"]
[Black "Guleryuz, Zeynep"]
[Result "1-0"]
[ECO "B24"]
[WhiteElo "1436"]
[BlackElo "1186"]
[Annotator "NA"]
[PlyCount "49"]
[EventDate "2022.03.04"]
[EventType "swiss"]
[EventCountry "TUR"]
[SourceTitle "playchess.com"]
[Source "ChessBase"]
[SourceQuality "1"]
[TimeControl "5400+30"]

1. e4 {[%emt 0:01:00]} c5 {[%emt 0:01:00]} 2. Nc3 {[%emt 0:00:30]} d6 {[%emt 0:00:30]} 3. g3 {[%emt 0:00:30]} Nc6 {[%emt 0:00:30]} 4. Bg2 {[%emt 0:00:30]} Nf6 {[%emt 0:00:30]} 5. d3 {[%emt 0:00:00]} e6 {[%emt 0:02:30]} 6. Nge2 {[%emt 0:01:00]} Be7 {[%emt 0:00:30]} 7. O-O {[%emt 0:00:30]} O-O {[%emt 0:02:30]} 8. h3 {[%emt 0:01:30]} d5 {[%emt 0:02:30]} 9. exd5 {[%emt 0:02:30]} exd5 {[%emt 0:00:00]} 10. d4 {[%emt 0:01:30]} cxd4 {[%emt 0:07:00]} 11. Nxd4 {[%emt 0:00:30]} Bc5 {[%emt 0:02:30]} 12. Nb3 {[%emt 0:05:30]} Bb6 {[%emt 0:02:30]} 13. Bg5 {[%emt 0:05:30]} d4 {[%emt 0:04:30]} 14. Nd5 {[%emt 0:06:30]} h6 {[%emt 0:06:30]} 15. Nxf6+ {[%emt 0:01:30]} gxf6 {[%emt 0:01:30]} 16. Bxh6 {[%emt 0:00:30]} Re8 {[%emt 0:00:30]} 17. Qh5 {[%emt 0:03:30]} Re5 {[%emt 0:01:30]} 18. Qh4 {[%emt 0:01:30]} f5 {[%emt 0:06:30]} 19. Bg5 {[%emt 0:01:30]} f6 {[%emt 0:09:30]} 20. Bxf6 {[%emt 0:06:30]} Qd6 {[%emt 0:01:30]} 21. Qh8+ {[%emt 0:01:30]} Kf7 {[%emt 0:00:30]} 22. Qg7+ {[%emt 0:00:00]} Ke6 {[%emt 0:00:00]} 23. Bxc6 {[%emt 0:01:00]} bxc6 {[%emt 0:01:00]} 24. Bxe5 {[%emt 0:00:30]} Qxe5 {[%emt 0:00:30]} 25. Rae1 {[%emt 0:00:30]} 1-0

[Event "Turkish Women-ch Arzum 2022"]
[Site "Ayvalik"]
[Date "2022.03.06"]
[Round "3.32"]
[White "Susin, Derya Defne"]
[Black "Aksoy, Duru"]
[Result "1-0"]
[ECO "D37"]
[WhiteElo "1285"]
[BlackElo "1223"]
[Annotator "NA"]
[PlyCount "67"]
[EventDate "2022.03.04"]
[EventType "swiss"]
[EventCountry "TUR"]
[SourceTitle "playchess.com"]
[Source "ChessBase"]
[SourceQuality "1"]
[TimeControl "5400+30"]

1. d4 {[%emt 0:01:00]} d5 {[%emt 0:01:00]} 2. c4 {[%emt 0:00:30]} e6 {[%emt 0:00:30]} 3. Nc3 {[%emt 0:00:30]} Nf6 {[%emt 0:00:30]} 4. Nf3 {[%emt 0:00:30]} c6 {[%emt 0:01:30]} 5. Bf4 {[%emt 0:01:30]} Be7 {[%emt 0:02:30]} 6. e3 {[%emt 0:00:30]} O-O {[%emt 0:00:30]} 7. Rc1 {[%emt 0:03:30]} Nbd7 {[%emt 0:06:30]} 8. c5 {[%emt 0:01:30]} b6 {[%emt 0:05:30]} 9. b4 {[%emt 0:03:30]} bxc5 {[%emt 0:00:30]} 10. bxc5 {[%emt 0:04:30]} Qa5 {[%emt 0:07:30]} 11. Bd3 {[%emt 0:04:30]} Ba6 {[%emt 0:05:30]} 12. O-O {[%emt 0:05:30]} Ne4 {[%emt 0:02:30]} 13. Nxe4 {[%emt 0:07:30]} dxe4 {[%emt 0:00:30]} 14. Bxa6 {[%emt 0:01:30]} exf3 {[%emt 0:01:30]} 15. Bb7 {[%emt 0:03:30]} fxg2 {[%emt 0:02:30]} 16. Kxg2 {[%emt 0:13:30]} Rad8 {[%emt 0:07:30]} 17. Qf3 {[%emt 0:06:30]} e5 {[%emt 0:10:30]} 18. Bg3 {[%emt 0:06:30]} Bf6 {[%emt 0:07:30]} 19. Rfd1 {[%emt 0:08:30]} exd4 {[%emt 0:06:30]} 20. exd4 {[%emt 0:04:30]} Qxa2 {[%emt 0:04:30]} 21. Bd6 {[%emt 0:04:03]} Rfe8 {[%emt 0:03:30]} 22. Bc7 {[%emt 0:02:43]} Nf8 {[%emt 0:02:30]} 23. Bxd8 {[%emt 0:01:43]} Rxd8 {[%emt 0:00:30]} 24. Bxc6 {[%emt 0:01:16]} Ng6 {[%emt 0:03:38]} 25. Kg1 {[%emt 0:03:02]} Nh4 {[%emt 0:03:33]} 26. Qe4 {[%emt 0:03:08]} Qb3 {[%emt 0:02:29]} 27. Rd3 {[%emt 0:02:21]} Qb8 {[%emt 0:01:36]} 28. Re1 {[%emt 0:01:33]} h6 {[%emt 0:01:31]} 29. Qe8+ {[%emt 0:00:55]} Kh7 {[%emt 0:00:34]} 30. Be4+ {[%emt 0:01:09]} Ng6 {[%emt 0:01:09]} 31. Qxf7 {[%emt 0:00:37]} Qf4 {[%emt 0:02:16]} 32. Bxg6+ {[%emt 0:00:51]} Kh8 {[%emt 0:00:30]} 33. Re8+ {[%emt 0:00:00]} Rxe8 {[%emt 0:00:27]} 34. Qxe8# {[%emt 0:00:17]} 1-0

[Event "Turkish Women-ch Arzum 2022"]
[Site "Ayvalik"]
[Date "2022.03.06"]
[Round "3.34"]
[White "Ozturk, Busra"]
[Black "Yazici, Zumral"]
[Result "0-1"]
[ECO "C50"]
[WhiteElo "1100"]
[BlackElo "1229"]
[Annotator "NA"]
[PlyCount "78"]
[EventDate "2022.03.04"]
[EventType "swiss"]
[EventCountry "TUR"]
[SourceTitle "playchess.com"]
[Source "ChessBase"]
[SourceQuality "1"]
[TimeControl "5400+30"]

1. e4 {[%emt 0:07:00]} e5 {[%emt 0:01:00]} 2. Nf3 {[%emt 0:00:30]} Nc6 {[%emt 0:00:00]} 3. Bc4 {[%emt 0:00:30]} Bc5 {[%emt 0:00:00]} 4. O-O {[%emt 0:00:30]} Nf6 {[%emt 0:00:30]} 5. Re1 {[%emt 0:00:30]} d6 {[%emt 0:01:30]} 6. h3 {[%emt 0:00:30]} a6 {[%emt 0:00:30]} 7. a3 {[%emt 0:00:30]} O-O {[%emt 0:02:30]} 8. c3 {[%emt 0:00:00]} h6 {[%emt 0:21:30]} 9. d4 {[%emt 0:02:00]} Ba7 {[%emt 0:08:30]} 10. b4 {[%emt 0:07:30]} exd4 {[%emt 0:09:30]} 11. cxd4 {[%emt 0:00:30]} d5 {[%emt 0:09:30]} 12. exd5 {[%emt 0:02:30]} Nxd5 {[%emt 0:00:30]} 13. Bb2 {[%emt 0:04:30]} Bf5 {[%emt 0:07:30]} 14. Qb3 {[%emt 0:06:30]} Nce7 {[%emt 0:08:30]} 15. Nc3 {[%emt 0:05:30]} Nxc3 {[%emt 0:01:30]} 16. Qxc3 {[%emt 0:00:30]} Nd5 {[%emt 0:08:47]} 17. Bxd5 {[%emt 0:02:30]} Qxd5 {[%emt 0:00:03]} 18. Re5 {[%emt 0:00:30]} Qd7 {[%emt 0:00:34]} 19. d5 {[%emt 0:00:30]} f6 {[%emt 0:00:34]} 20. Re2 {[%emt 0:01:30]} Qxd5 {[%emt 0:04:40]} 21. Rae1 {[%emt 0:00:30]} c6 {[%emt 0:03:30]} 22. Nd4 {[%emt 0:04:30]} Bd7 {[%emt 0:02:27]} 23. Ne6 {[%emt 0:03:30]} Bxe6 {[%emt 0:00:33]} 24. Rxe6 {[%emt 0:00:30]} Rf7 {[%emt 0:05:59]} 25. Qg3 {[%emt 0:01:30]} Qf5 {[%emt 0:01:38]} 26. Bc1 {[%emt 0:01:30]} Kf8 {[%emt 0:00:58]} 27. Qd6+ {[%emt 0:06:30]} Kg8 {[%emt 0:00:08]} 28. Qg3 {[%emt 0:00:30]} Kh7 {[%emt 0:00:49]} 29. Qh4 {[%emt 0:01:30]} Bb6 {[%emt 0:00:47]} 30. g4 {[%emt 0:01:30]} Qf3 {[%emt 0:00:29]} 31. g5 {[%emt 0:02:30]} fxg5 {[%emt 0:00:20]} 32. Qe4+ {[%emt 0:04:30]} Qxe4 {[%emt 0:00:30]} 33. R1xe4 {[%emt 0:00:00]} Rxf2 {[%emt 0:00:00]} 34. Kh1 {[%emt 0:01:00]} Rf1+ {[%emt 0:00:00]} 35. Kg2 {[%emt 0:00:30]} Rxc1 {[%emt 0:00:06]} 36. Re7 {[%emt 0:00:30]} Rc2+ {[%emt 0:00:40]} 37. Kf1 {[%emt 0:00:30]} Rf8+ {[%emt 0:00:30]} 38. Ke1 {[%emt 0:00:30]} Rff2 {[%emt 0:00:00]} 39. Rxb7 {[%emt 0:01:30]} Rc1# {[%emt 0:00:00]} 0-1

[Event "Turkish Women-ch Arzum 2022"]
[Site "Ayvalik"]
[Date "2022.03.06"]
[Round "3.35"]
[White "Kum, Busra"]
[Black "Bodur, Ilke Lal"]
[Result "0-1"]
[ECO "C77"]
[WhiteElo "1062"]
[BlackElo "1151"]
[Annotator "NA"]
[PlyCount "122"]
[EventDate "2022.03.04"]
[EventType "swiss"]
[EventCountry "TUR"]
[SourceTitle "playchess.com"]
[Source "ChessBase"]
[SourceQuality "1"]
[TimeControl "5400+30"]

1. e4 {[%emt 0:01:00]} e5 {[%emt 0:01:00]} 2. Nf3 {[%emt 0:00:30]} Nc6 {[%emt 0:00:30]} 3. Bb5 {[%emt 0:00:30]} a6 {[%emt 0:00:30]} 4. Ba4 {[%emt 0:00:30]} Nf6 {[%emt 0:00:30]} 5. c3 {[%emt 0:00:30]} b5 {[%emt 0:00:00]} 6. Bc2 {[%emt 0:00:30]} d6 {[%emt 0:02:00]} 7. h3 {[%emt 0:04:30]} Bb7 {[%emt 0:02:30]} 8. d4 {[%emt 0:01:30]} exd4 {[%emt 0:01:30]} 9. cxd4 {[%emt 0:00:30]} Be7 {[%emt 0:00:00]} 10. Nbd2 {[%emt 0:04:30]} O-O {[%emt 0:03:00]} 11. O-O {[%emt 0:00:30]} Re8 {[%emt 0:01:30]} 12. Re1 {[%emt 0:01:30]} Bf8 {[%emt 0:02:30]} 13. b3 {[%emt 0:05:30]} d5 {[%emt 0:09:30]} 14. e5 {[%emt 0:04:30]} Nd7 {[%emt 0:00:30]} 15. Nf1 {[%emt 0:01:30]} Bb4 {[%emt 0:06:30]} 16. Qd3 {[%emt 0:08:30]} Nf8 {[%emt 0:01:30]} 17. Re3 {[%emt 0:03:30]} Be7 {[%emt 0:03:30]} 18. Qf5 {[%emt 0:02:30]} Bc8 {[%emt 0:03:30]} 19. Qf4 {[%emt 0:03:30]} Ne6 {[%emt 0:02:30]} 20. Qh2 {[%emt 0:06:30]} Ncxd4 {[%emt 0:03:30]} 21. Nxd4 {[%emt 0:01:30]} Nxd4 {[%emt 0:00:30]} 22. Bd3 {[%emt 0:05:30]} Bf5 {[%emt 0:03:30]} 23. Bxf5 {[%emt 0:06:30]} Nxf5 {[%emt 0:00:30]} 24. Rd3 {[%emt 0:00:00]} Bc5 {[%emt 0:08:30]} 25. Qf4 {[%emt 0:04:00]} Ne7 {[%emt 0:07:30]} 26. Rf3 {[%emt 0:02:30]} Rf8 {[%emt 0:01:30]} 27. Bb2 {[%emt 0:02:30]} Ng6 {[%emt 0:03:30]} 28. Qg4 {[%emt 0:00:30]} Qe7 {[%emt 0:01:30]} 29. Re1 {[%emt 0:02:30]} Qe6 {[%emt 0:01:30]} 30. Qg5 {[%emt 0:05:30]} Be7 {[%emt 0:07:30]} 31. Qc1 {[%emt 0:01:30]} Rac8 {[%emt 0:02:30]} 32. Ng3 {[%emt 0:01:31]} Nh4 {[%emt 0:01:47]} 33. Rd3 {[%emt 0:01:29]} c5 {[%emt 0:01:18]} 34. f4 {[%emt 0:04:27]} Qg6 {[%emt 0:04:05]} 35. Qe3 {[%emt 0:03:48]} d4 {[%emt 0:05:48]} 36. Qe4 {[%emt 0:01:48]} Qxe4 {[%emt 0:01:04]} 37. Nxe4 {[%emt 0:00:27]} Nf5 {[%emt 0:00:31]} 38. g4 {[%emt 0:01:48]} Ne3 {[%emt 0:00:31]} 39. f5 {[%emt 0:02:06]} Bh4 {[%emt 0:01:32]} 40. Re2 {[%emt 0:01:15]} Nd5 {[%emt 0:00:08]} 41. Rf3 {[%emt 0:01:51]} h6 {[%emt 0:01:23]} 42. Nd6 {[%emt 0:01:01]} Rcd8 {[%emt 0:02:17]} 43. Nb7 {[%emt 0:01:54]} Rc8 {[%emt 0:01:11]} 44. f6 {[%emt 0:00:47]} gxf6 {[%emt 0:03:09]} 45. exf6 {[%emt 0:00:46]} Bxf6 {[%emt 0:00:46]} 46. Ref2 {[%emt 0:01:40]} c4 {[%emt 0:01:57]} 47. bxc4 {[%emt 0:00:30]} bxc4 {[%emt 0:00:00]} 48. Nd6 {[%emt 0:00:13]} Rc6 {[%emt 0:00:36]} 49. Ne4 {[%emt 0:01:46]} Bg7 {[%emt 0:00:37]} 50. g5 {[%emt 0:00:43]} hxg5 {[%emt 0:00:30]} 51. Nxg5 {[%emt 0:00:30]} Rg6 {[%emt 0:00:00]} 52. Rg2 {[%emt 0:00:02]} c3 {[%emt 0:01:09]} 53. Ba3 {[%emt 0:00:33]} c2 {[%emt 0:00:40]} 54. Rf1 {[%emt 0:00:58]} Ne3 {[%emt 0:01:10]} 55. Bxf8 {[%emt 0:00:32]} Nxf1 {[%emt 0:00:12]} 56. Ba3 {[%emt 0:00:24]} Bh6 {[%emt 0:00:32]} 57. Ne4 {[%emt 0:00:31]} Rxg2+ {[%emt 0:00:45]} 58. Kxg2 {[%emt 0:00:04]} Ne3+ {[%emt 0:00:40]} 59. Kf2 {[%emt 0:00:28]} Nc4 {[%emt 0:00:00]} 60. Bc1 {[%emt 0:01:16]} Bxc1 {[%emt 0:00:00]} 61. Ng3 {[%emt 0:00:37]} Be3+ {[%emt 0:00:01]} 0-1

[Event "Turkish Women-ch Arzum 2022"]
[Site "Ayvalik"]
[Date "2022.03.07"]
[Round "4.2"]
[White "Buyuk, Ecrin Efsa"]
[Black "Catal, Uktenur"]
[Result "1/2-1/2"]
[ECO "B40"]
[WhiteElo "1565"]
[BlackElo "1832"]
[Annotator "NA RC"]
[PlyCount "66"]
[EventDate "2022.03.04"]
[EventType "swiss"]
[EventCountry "TUR"]
[SourceTitle "playchess.com"]
[Source "ChessBase"]
[SourceQuality "1"]
[TimeControl "5400+30"]

1. e4 {[%emt 0:04:00]} c5 {[%emt 0:01:00]} 2. Nf3 {[%emt 0:00:00]} e6 {[%emt 0:00:30]} 3. g3 {[%emt 0:00:00]} Nc6 {[%emt 0:00:00]} 4. Bg2 {[%emt 0:01:30]} Nf6 {[%emt 0:00:00]} 5. Qe2 {[%emt 0:02:30]} e5 {[%emt 0:00:00]} 6. O-O {[%emt 0:04:30]} d6 {[%emt 0:00:00]} 7. h3 {[%emt 0:08:30]} Be7 {[%emt 0:00:30]} 8. c3 {[%emt 0:01:30]} O-O {[%emt 0:00:30]} 9. Rd1 {[%emt 0:02:30]} Qc7 {[%emt 0:13:30]} 10. Na3 {[%emt 0:08:30]} (10. d4 $1 $14) 10... Re8 {[%emt 0:11:30]} (10... Be6 $11) 11. d4 {[%emt 0:29:30]} a6 {[%emt 0:30:30]} (11... exd4 $11 {is superior.} 12. cxd4 Bf8) 12. dxc5 {[%emt 0:02:30]} dxc5 {[%emt 0:00:30]} 13. Bg5 {[%emt 0:04:30]} Be6 {[%emt 0:02:30]} 14. Bxf6 {[%emt 0:04:30]} Bxf6 {[%emt 0:00:30]} 15. Nc2 {[%emt 0:00:30]} Rad8 {[%emt 0:00:00]} 16. Ne3 {[%emt 0:01:30]} Rxd1+ {[%emt 0:03:00]} 17. Rxd1 {[%emt 0:06:04]} Qa5 {[%emt 0:06:30]} 18. a3 {[%emt 0:01:57]} h6 {[%emt 0:14:35]} 19. Nd5 $14 {[%emt 0:03:15]} Bd8 {[%emt 0:01:26]} 20. Ne1 {[%emt 0:02:15]} Ne7 {[%emt 0:04:50]} 21. Nd3 {[%emt 0:07:33]} Nxd5 {[%emt 0:02:23]} 22. exd5 {[%emt 0:00:04]} Bd7 {[%emt 0:00:06]} 23. d6 {[%emt 0:02:44]} Qb6 {[%emt 0:05:10]} 24. Nxe5 {[%emt 0:00:44]} Ba4 {[%emt 0:01:26]} 25. Re1 {[%emt 0:01:22]} Qxd6 {[%emt 0:01:03]} 26. Qc4 {[%emt 0:00:30]} Rxe5 {[%emt 0:00:07]} 27. Rxe5 {[%emt 0:00:30]} Qxe5 {[%emt 0:00:30]} 28. Qxa4 {[%emt 0:00:00]} Qe1+ {[%emt 0:00:00]} 29. Kh2 {[%emt 0:00:00]} Qe7 {[%emt 0:01:09]} 30. c4 {[%emt 0:01:16]} Kh7 {[%emt 0:00:42]} 31. Qb3 {[%emt 0:00:38]} b6 {[%emt 0:00:10]} 32. Qd3+ {[%emt 0:00:14]} g6 {[%emt 0:00:24]} 33. Bd5 {[%emt 0:01:04]} Kg7 {[%emt 0:00:17]} 1/2-1/2

[Event "Turkish Women-ch Arzum 2022"]
[Site "Ayvalik"]
[Date "2022.03.07"]
[Round "4.4"]
[White "Kocyigit, Buse Naz"]
[Black "Can, Isil"]
[Result "1-0"]
[ECO "A95"]
[WhiteElo "2023"]
[BlackElo "1875"]
[Annotator "RC"]
[PlyCount "61"]
[EventDate "2022.03.04"]
[EventType "swiss"]
[EventCountry "TUR"]
[SourceTitle "playchess.com"]
[Source "ChessBase"]
[SourceQuality "1"]
[TimeControl "5400+30"]

1. Nf3 {[%emt 0:03:00]} d5 {[%emt 0:01:00]} 2. d4 {[%emt 0:00:30]} Nf6 {[%emt 0:00:30]} 3. c4 {[%emt 0:00:00]} e6 {[%emt 0:00:00]} 4. Qc2 {[%emt 0:01:00]} Nbd7 {[%emt 0:00:00]} 5. g3 {[%emt 0:00:30]} c6 {[%emt 0:00:30]} 6. Bg2 {[%emt 0:00:00]} Ne4 {[%emt 0:03:30]} 7. O-O {[%emt 0:00:00]} Be7 {[%emt 0:02:30]} 8. Nc3 {[%emt 0:02:30]} f5 {[%emt 0:00:30]} 9. Bf4 {[%emt 0:02:30]} O-O {[%emt 0:01:30]} 10. Ne5 {[%emt 0:02:30]} Nxe5 {[%emt 0:02:30]} 11. Bxe5 {[%emt 0:00:30]} Bf6 {[%emt 0:07:30]} 12. Bxf6 {[%emt 0:09:30]} Qxf6 {[%emt 0:00:30]} 13. e3 {[%emt 0:01:30]} b6 {[%emt 0:06:30]} 14. Rfd1 {[%emt 0:10:30]} Bb7 {[%emt 0:05:30]} 15. b4 {[%emt 0:08:30]} a5 {[%emt 0:13:30]} 16. Na4 {[%emt 0:06:30]} Qd8 {[%emt 0:03:30]} 17. c5 {[%emt 0:00:30]} b5 {[%emt 0:06:30]} 18. Nb6 {[%emt 0:00:30]} Ra6 {[%emt 0:05:30]} 19. a4 {[%emt 0:00:30]} axb4 {[%emt 0:08:30]} 20. axb5 {[%emt 0:01:30]} Rxa1 {[%emt 0:02:30]} 21. Rxa1 {[%emt 0:00:30]} cxb5 {[%emt 0:00:00]} 22. Qb3 {[%emt 0:10:30]} Bc6 {[%emt 0:05:00]} 23. Qxb4 {[%emt 0:00:30]} Qe7 {[%emt 0:01:30]} 24. Bf1 {[%emt 0:03:30]} Rb8 {[%emt 0:01:30]} 25. Ra6 {[%emt 0:14:30]} Qe8 {[%emt 0:02:30]} 26. Ra5 {[%emt 0:00:30]} Nd6 {[%emt 0:00:30]} 27. cxd6 {[%emt 0:12:30]} Rxb6 {[%emt 0:00:30]} 28. Ra7 {[%emt 0:00:26]} Bd7 {[%emt 0:13:15]} 29. Qa5 {[%emt 0:01:45]} Rb8 {[%emt 0:01:21]} 30. Qc7 {[%emt 0:00:35]} Rd8 {[%emt 0:00:04]} 31. Bxb5 {[%emt 0:00:35]} 1-0